bitfinex/quotes_SOLUSD_20211001
["timestamp","ask_amount","ask_price","bid_price","bid_amount"]
[1633064957813,372.60408088,139.99,139.95,26.06169035]
[1633064958015,3.02,140.04,139.96,8.2750888]
[1633064958212,3.02,140.06,139.96,12.41037045]
[1633064959011,3.02,140.06,139.98,26.8009937]
[1633064959412,392.50669084,140.06,139.98,26.8009937]
[1633064963315,392.50669084,140.06,139.94,78.7444]
[1633064964218,392.50669084,140.06,139.95,24.93375559]
[1633064970122,5.63542961,140.05,139.95,24.93375559]
[1633064971125,5.63542961,140.05,139.94,78.7444]
[1633064971323,24.23542961,140.05,139.94,3.02]
[1633064971523,3.02,140.04,139.93,60.02088]
[1633064971730,8.65542961,140.04,139.93,57.52088]
[1633064971923,5.63542961,140.03,139.93,57.52088]
[1633064972323,5.63542961,140.03,139.93,30.0]
[1633064972524,5.63542961,140.03,139.92,30.69377501]
[1633064973126,3.02,140.02,139.92,27.67377501]
[1633064973325,20.047,140.02,139.92,27.67377501]
[1633064973524,5.63542961,140.01,139.92,27.67377501]
[1633064974724,5.63542961,140.01,139.9,60.54]
[1633064975529,5.63542961,140.01,139.9,3.02]
[1633064975726,5.63542961,140.01,139.9,26.3231308]
[1633064977129,48.98750563,140.02,139.9,26.3231308]
[1633064977329,54.62293524,140.02,139.9,26.3231308]
[1633064978230,54.62293524,140.02,139.91,8.27631941]
[1633064980633,54.62293524,140.02,139.91,12.40965217]
[1633064983435,54.62293524,140.02,139.92,4.13401256]
[1633064983635,54.62293524,140.02,139.93,28.09811619]
[1633064985335,54.62293524,140.02,139.94,8.27571835]
[1633064987437,54.62293524,140.02,139.94,12.41059404]
[1633064989437,54.62293524,140.02,139.93,4.13511119]
[1633064990337,54.62293524,140.02,139.94,4.13508377]
[1633064990539,54.62293524,140.02,139.94,12.41078429]
[1633064990738,54.62293524,140.02,139.94,4.13508377]
[1633064996142,37.59593524,140.02,139.95,27.63753267]
[1633064996342,6.74564624,140.02,139.96,8.27504212]
[1633064997143,6.74564624,140.02,139.96,12.4106391]
[1633064998343,6.74564624,140.02,139.97,4.13550785]
[1633065000945,5.63542961,140.01,139.97,4.13550785]
[1633065001145,3.02,140.0,139.95,4.13648636]
[1633065001346,3.02,140.0,139.94,4.13695154]
[1633065001546,8.65542961,140.0,139.93,4.13701564]
[1633065002147,8.65542961,140.0,139.93,12.41392533]
[1633065002947,8.65542961,140.0,139.94,4.13672052]
[1633065005351,8.65542961,140.0,139.95,25.80395497]
[1633065006552,8.65542961,140.0,139.94,4.13672052]
[1633065006750,23.34842961,140.0,139.93,4.13705732]
[1633065007551,23.34842961,140.0,139.93,26.79283845]
[1633065007953,23.34842961,140.0,139.94,8.27690423]
[1633065009759,2.45957488,139.98,139.9,4.13769671]
[1633065009958,3.02,139.97,139.9,4.13769671]
[1633065010159,45.64326968,139.97,139.9,4.13769671]
[1633065010358,21.20567537,139.96,139.86,4.13731245]
[1633065010559,78.45088,139.95,139.81,4.13873563]
[1633065010759,17.8917,139.89,139.81,12.15111113]
[1633065010960,3.02,139.88,139.81,8.0123755]
[1633065011160,20.02136259,139.88,139.81,8.0123755]
[1633065011360,20.02136259,139.88,139.79,4.13922969]
[1633065011558,20.02136259,139.88,139.74,23.18482564]
[1633065011559,8.65542961,139.88,139.78,4.13970819]
[1633065011763,22.6367922,139.87,139.78,4.13970819]
[1633065011962,3.02,139.86,139.75,36.20956228]
[1633065012160,32.42242961,139.86,139.76,36.70426426]
[1633065012360,32.42242961,139.86,139.76,40.84147394]
[1633065012560,26.787,139.86,139.77,8.00852143]
[1633065012961,26.787,139.86,139.76,28.69545829]
[1633065013762,32.42242961,139.86,139.76,28.69545829]
[1633065017384,32.42242961,139.86,139.72,30.0]
[1633065017585,32.42242961,139.86,139.7,3.02]
[1633065017788,17.8988,139.84,139.7,3.02]
[1633065017984,3.02,139.83,139.7,3.02]
[1633065018185,30.96442961,139.83,139.7,3.02]
[1633065018384,30.96442961,139.83,139.71,23.74828081]
[1633065019786,5.63542961,139.82,139.71,23.74828081]
[1633065019985,3.02,139.81,139.71,23.74828081]
[1633065021087,3.02,139.83,139.72,3.02]
[1633065021288,347.69125237,139.89,139.72,87.83932961]
[1633065021289,317.9091713,139.89,139.72,87.83932961]
[1633065021491,317.9091713,139.89,139.73,7.99551598]
[1633065021687,317.9091713,139.89,139.75,30.0]
[1633065021887,317.9091713,139.89,139.76,3.02]
[1633065022087,3.02,139.89,139.77,83.79902522]
[1633065022288,3.02,139.89,139.78,33.02]
[1633065022688,3.02,139.89,139.78,60.54]
[1633065023493,3.02,139.89,139.78,57.52]
[1633065024091,8.65542961,139.89,139.78,57.52]
[1633065024488,3.02,139.89,139.78,57.52]
[1633065025892,3.02,139.89,139.79,78.2172]
[1633065026090,3.02,139.89,139.8,23.21734016]
[1633065029294,3.02,139.89,139.8,50.73734016]
[1633065029492,3.02,139.89,139.8,80.73734016]
[1633065031194,26.54942961,139.89,139.8,57.52]
[1633065031396,26.54942961,139.89,139.8,27.52]
[1633065031397,43.22289812,139.89,139.8,27.52]
[1633065031594,0.02088,139.88,139.74,2.06703418]
[1633065031800,3.02,139.87,139.77,30.0]
[1633065031994,8.67630961,139.87,139.77,57.52]
[1633065032195,8.67630961,139.87,139.78,27.42678022]
[1633065032994,8.65542961,139.87,139.78,27.42678022]
[1633065033194,3.02,139.87,139.78,27.42678022]
[1633065033393,3.02,139.87,139.78,57.0134687]
[1633065033594,9.38293505,139.91,139.8,2.06634722]
[1633065033794,9.38293505,139.91,139.83,2.06625474]
[1633065033795,0.02088,139.91,139.83,2.06625474]
[1633065033993,0.02088,139.91,139.84,2.06610406]
[1633065034400,0.02088,139.91,139.82,29.96679692]
[1633065034595,3.02,139.93,139.82,29.96679692]
[1633065034798,3.02,139.91,139.83,30.0]
[1633065035395,3.02,139.91,139.82,29.01358269]
[1633065035997,3.02,139.93,139.84,2.06695111]
[1633065036197,3.02,139.93,139.86,26.28344262]
[1633065036597,3.02,139.93,139.86,28.35014125]
[1633065037001,3.02,139.93,139.87,74.8064]
[1633065037200,3.02,139.96,139.87,98.5774]
[1633065037399,3.02,139.96,139.87,100.64416841]
[1633065038802,3.02,139.98,139.87,100.64416841]
[1633065039199,3.02,139.98,139.89,2.06653875]
[1633065039400,3.02,139.98,139.9,23.08286412]
[1633065040202,3.02,139.98,139.9,42.23486412]
[1633065044813,3.02,139.98,139.9,23.08286412]
[1633065058315,3.02,139.98,139.9,25.13445311]
[1633065059619,3.02,139.98,139.9,23.08286412]
[1633065059821,3.02,139.98,139.9,25.11933837]
[1633065062122,3.02,139.98,139.91,2.03255648]
[1633065062823,3.02,139.98,139.92,2.03332838]
[1633065063022,3.02,139.98,139.93,22.90530519]
[1633065064024,3.02,139.98,139.93,24.93389294]
[1633065065025,3.02,139.98,139.94,2.02158771]
[1633065065422,3.02,139.98,139.93,24.93118189]
[1633065065829,3.02,139.98,139.94,2.02683528]
[1633065067323,3.02,140.02,139.94,2.02683528]
[1633065067523,3.02,140.02,139.95,2.02161551]
[1633065067725,3.02,140.02,139.96,24.19717071]
[1633065069325,5.63542961,140.05,139.96,47.28217071]
[1633065069528,3.02,140.04,139.96,49.29345542]
[1633065069725,3.02,140.06,139.98,1.99803128]
[1633065069928,3.02,140.08,139.99,26.53233858]
[1633065070126,6.74394196,140.1,139.99,52.52734841]
[1633065070726,6.74394196,140.1,140.0,1.96940889]
[1633065072227,6.74394196,140.1,139.99,52.53324923]
[1633065072626,3.02,140.1,140.0,1.98667482]
[1633065073228,3.02,140.1,140.01,1.97339827]
[1633065073428,14.89621785,140.12,140.02,25.09073226]
[1633065074230,14.89621785,140.12,140.02,39.94973226]
[1633065074833,24.31230134,140.14,140.02,39.94973226]
[1633065075031,5.65630961,140.17,140.03,1.94367503]
[1633065075032,5.63542961,140.17,140.03,1.94367503]
[1633065075233,8.65542961,140.2,140.04,3.02]
[1633065075431,8.65542961,140.2,140.05,25.9050016]
[1633065075632,8.65542961,140.2,140.06,3.02]
[1633065076632,8.65542961,140.2,140.06,30.54]
[1633065076832,24.31230134,140.19,140.06,30.54]
[1633065077034,24.31230134,140.19,140.06,60.54]
[1633065079736,32.96773095,140.19,140.06,60.54]
[1633065079939,73.28037692,140.19,140.06,60.54]
[1633065080137,23.85651422,140.18,140.06,60.54]
[1633065080338,23.85651422,140.18,140.06,3.02]
[1633065080539,5.63542961,140.17,140.06,3.02]
[1633065080936,29.94773095,140.17,140.06,3.02]
[1633065081137,5.63542961,140.17,140.06,3.02]
[1633065081337,0.02088,140.18,140.06,77.5397]
[1633065084538,3.02,140.17,140.06,3.02]
[1633065085140,3.02,140.17,140.06,78.6231]
[1633065093149,8.65542961,140.17,140.06,78.6231]
[1633065093948,12.3777499,140.17,140.06,78.6231]
[1633065099050,3.02,140.17,140.06,98.9421]
[1633065099450,3.02,140.17,140.06,100.90272877]
[1633065100151,3.02,140.17,140.07,1.95931433]
[1633065100350,3.02,140.17,140.08,25.31303428]
[1633065100953,8.65542961,140.19,140.08,25.31303428]
[1633065101551,3.02,140.19,140.08,27.26974899]
[1633065101955,3.02,140.19,140.09,30.0]
[1633065102352,3.02,140.19,140.09,31.94919577]
[1633065102553,3.02,140.19,140.09,78.77819577]
[1633065102954,3.02,140.19,140.1,1.94424011]
[1633065103155,3.02,140.19,140.11,23.83109322]
[1633065106160,8.65542961,140.21,140.11,23.83109322]
[1633065107358,8.65542961,140.21,140.11,39.94109322]
[1633065107760,3.02,140.21,140.11,39.94109322]
[1633065107959,3.02,140.23,140.11,44.90516257]
[1633065108160,3.02,140.23,140.12,78.3137]
[1633065108759,3.02,140.23,140.12,80.25186056]
[1633065109761,15.28134494,140.24,140.14,1.91109571]
[1633065109963,0.02088,140.25,140.15,31.95281377]
[1633065110162,426.54304759,140.27,140.15,30.0458355]
[1633065110761,426.54304759,140.27,140.15,31.94741566]
[1633065111161,0.02088,140.28,140.15,31.94741566]
[1633065111363,0.02088,140.28,140.15,30.0458355]
[1633065111962,0.02088,140.28,140.15,57.5658355]
[1633065112362,5.65630961,140.28,140.15,57.5658355]
[1633065113265,5.65630961,140.28,140.15,87.5658355]
[1633065121499,0.02088,140.28,140.15,87.5658355]
[1633065122300,5.65630961,140.28,140.15,87.5658355]
[1633065122504,5.65630961,140.28,140.15,30.0458355]
[1633065122700,3.02,140.27,140.15,30.0458355]
[1633065123102,5.63542961,140.26,140.15,30.0458355]
[1633065127007,3.02,140.27,140.15,30.0458355]
[1633065127207,3.02,140.27,140.15,51.2748355]
[1633065127607,3.02,140.27,140.15,81.2748355]
[1633065127811,3.02,140.27,140.15,108.7948355]
[1633065128209,8.65542961,140.27,140.15,108.7948355]
[1633065130911,32.96773095,140.27,140.15,51.2748355]
[1633065134814,27.33230134,140.27,140.15,51.2748355]
[1633065135212,27.33230134,140.27,140.15,53.05816437]
[1633065137016,27.33230134,140.27,140.15,30.0458355]
[1633065137215,27.33230134,140.27,140.15,31.83203684]
[1633065138218,27.33230134,140.27,140.16,1.77372514]
[1633065139021,32.96773095,140.27,140.16,1.77372514]
[1633065139221,32.96773095,140.27,140.15,31.83264619]
[1633065139422,45.2495768,140.27,140.15,31.83264619]
[1633065139623,47.31471553,140.27,140.15,27.0258355]
[1633065140024,45.2495768,140.27,140.15,27.0258355]
[1633065140626,45.2495768,140.27,140.15,28.8127789]
[1633065144028,47.31454777,140.27,140.15,27.0258355]
[1633065145734,17.8432,140.26,140.14,1.82955106]
[1633065145933,3.02,140.25,140.12,80.16487667]
[1633065146133,3.02,140.25,140.12,78.3137]
[1633065146134,73.64362231,140.25,140.12,78.3137]
[1633065146331,29.96861095,140.24,140.12,80.16368028]
[1633065146531,3.04088,140.23,140.12,80.16368028]
[1633065146731,0.02088,140.22,140.13,21.81872181]
[1633065146931,3.02,140.21,140.13,21.81872181]
[1633065147332,8.65542961,140.21,140.13,21.81872181]
[1633065147931,3.02,140.21,140.13,21.81872181]
[1633065148131,20.8703,140.21,140.13,21.81872181]
[1633065149933,3.02,140.21,140.13,21.81872181]
[1633065151334,3.02,140.21,140.12,78.3137]
[1633065151537,8.65542961,140.21,140.12,78.3137]
[1633065152335,8.65542961,140.21,140.12,101.94566082]
[1633065154041,8.65542961,140.21,140.12,103.83140752]
[1633065154240,8.65542961,140.21,140.12,101.94566082]
[1633065161144,3.02,140.21,140.12,101.94566082]
[1633065161551,3.02,140.21,140.12,103.84211832]
[1633065163246,8.65542961,140.21,140.12,103.84211832]
[1633065163446,8.65542961,140.21,140.12,101.94566082]
[1633065165847,8.65542961,140.21,140.12,103.84683166]
[1633065168749,8.65542961,140.21,140.13,1.90273166]
[1633065168952,3.02,140.21,140.13,1.90273166]
[1633065169950,8.65542961,140.21,140.12,103.85459198]
[1633065172752,8.65542961,140.21,140.12,101.94566082]
[1633065172949,8.65542961,140.21,140.12,103.864948]
[1633065173949,8.65542961,140.21,140.12,101.94566082]
[1633065174350,18.87637424,140.21,140.12,101.94566082]
[1633065174750,25.92781724,140.21,140.12,101.94566082]
[1633065178155,51.90122969,140.21,140.12,101.94566082]
[1633065178756,51.90122969,140.21,140.12,78.3137]
[1633065182065,53.96701211,140.21,140.12,78.3137]
[1633065183260,78.5176203,140.21,140.12,78.3137]
[1633065183458,2.06596272,140.2,140.12,78.3137]
[1633065183659,3.02,140.19,140.12,78.3137]
[1633065183860,58.89174726,140.19,140.12,78.3137]
[1633065184060,23.88586502,140.18,140.08,1.95073961]
[1633065184261,3.02,140.17,140.08,74.8138]
[1633065184460,8.65542961,140.17,140.08,74.8138]
[1633065184661,23.88586502,140.16,140.08,74.8138]
[1633065184864,26.90586502,140.16,140.08,74.8138]
[1633065185067,5.63542961,140.15,140.08,74.8138]
[1633065191069,10.28916757,140.15,140.08,74.8138]
[1633065191470,5.63542961,140.14,140.08,74.8138]
[1633065196574,3.02,140.13,140.08,74.8138]
[1633065196979,8.65542961,140.13,140.08,74.8138]
[1633065201789,3.02,140.16,140.08,76.87231529]
[1633065201995,5.63542961,140.17,140.1,2.04568215]
[1633065202188,3.02,140.18,140.11,28.07067365]
[1633065202393,3.02,140.2,140.12,2.03430311]
[1633065202594,311.10432431,140.24,140.13,2.02470071]
[1633065202595,3.02,140.22,140.13,2.02470071]
[1633065202791,3.02,140.22,140.14,29.80378595]
[1633065202989,3.02,140.22,140.14,50.25178595]
[1633065203189,3.02,140.22,140.14,52.26488022]
[1633065203414,311.08344431,140.24,140.14,55.28488022]
[1633065203612,311.08344431,140.24,140.15,2.00167149]
[1633065203815,3.02,140.25,140.15,2.00167149]
[1633065204012,3.02,140.25,140.16,1.99649621]
[1633065204211,3.02,140.25,140.17,24.51908553]
[1633065204411,3.02,140.25,140.17,45.16908553]
[1633065204812,28.99341245,140.25,140.17,45.16908553]
[1633065206820,6.97290559,140.26,140.18,3.02]
[1633065207018,422.89901287,140.29,140.18,3.02]
[1633065210222,441.98886042,140.29,140.18,3.02]
[1633065213931,422.89901287,140.29,140.19,5.63542961]
[1633065214124,422.89901287,140.29,140.2,24.3386118]
[1633065214527,3.02,140.32,140.2,24.3386118]
[1633065214926,3.02,140.34,140.2,24.3386118]
[1633065215328,24.46256278,140.33,140.2,24.3386118]
[1633065215932,3.02,140.34,140.2,29.97404141]
[1633065216129,3.02,140.34,140.2,47.41004141]
[1633065217930,3.02,140.34,140.21,60.0]
[1633065218130,3.02,140.34,140.23,22.12667704]
[1633065218329,3.02,140.34,140.23,25.14667704]
[1633065220735,3.02,140.34,140.23,46.13667704]
[1633065222538,3.02,140.34,140.24,74.7099]
[1633065226143,3.02,140.34,140.23,25.14667704]
[1633065227944,5.63542961,140.33,140.23,25.14667704]
[1633065228342,26.4257299,140.34,140.23,25.14667704]
[1633065228942,3.02,140.34,140.23,25.14667704]
[1633065229544,3.02,140.34,140.23,22.12667704]
[1633065232947,3.02,140.34,140.23,24.13846595]
[1633065233148,3.02,140.34,140.23,22.12667704]
[1633065233746,3.02,140.34,140.23,24.13695337]
[1633065234347,3.02,140.34,140.23,22.12667704]
[1633065234948,3.02,140.34,140.23,24.13832638]
[1633065235950,8.65542961,140.34,140.23,24.13832638]
[1633065236150,3.02,140.34,140.23,24.13832638]
[1633065236350,3.02,140.34,140.24,76.4127]
[1633065237153,3.02,140.34,140.24,78.42644429]
[1633065237559,17.8361,140.32,140.22,2.0253549]
[1633065237757,3.02,140.31,140.21,60.0]
[1633065237952,63.50033424,140.31,140.21,60.0]
[1633065238151,29.04115951,140.3,140.21,30.0]
[1633065238352,3.02,140.29,140.2,2.04975628]
[1633065238552,31.41571461,140.29,140.2,2.04975628]
[1633065238751,19.0871674,140.28,140.18,2.05864322]
[1633065238951,3.02,140.27,140.19,2.0553442]
[1633065239150,22.46116924,140.27,140.19,2.0553442]
[1633065239555,5.63542961,140.26,140.18,2.06240075]
[1633065239758,3.02,140.25,140.18,2.06240075]
[1633065239954,357.47911363,140.27,140.18,2.06240075]
[1633065240153,340.653374,140.27,140.21,2.03556553]
[1633065240353,340.653374,140.27,140.22,25.41212851]
[1633065240554,340.653374,140.27,140.22,28.43212851]
[1633065240756,3.02,140.32,140.22,28.43212851]
[1633065241053,3.02,140.32,140.23,2.01445515]
[1633065241654,3.02,140.32,140.23,77.79075515]
[1633065242454,3.02,140.32,140.23,2.01445515]
[1633065242857,3.02,140.34,140.23,5.03445515]
[1633065243057,3.02,140.34,140.24,2.0069654]
[1633065243656,3.02,140.34,140.24,17.4629654]
[1633065243857,3.02,140.34,140.25,2.00458077]
[1633065244256,3.02,140.34,140.24,2.00600281]
[1633065246359,5.63542961,140.33,140.24,2.00600281]
[1633065246560,3.02,140.34,140.24,2.00600281]
[1633065246957,8.65542961,140.34,140.24,2.00600281]
[1633065248659,8.65542961,140.34,140.23,5.03613884]
[1633065248863,8.65542961,140.34,140.24,2.01476186]
[1633065250561,17.1123256,140.34,140.24,2.01476186]
[1633065250961,24.94777883,140.34,140.24,2.01476186]
[1633065255471,26.16484056,140.33,140.24,2.01476186]
[1633065255664,26.16484056,140.33,140.22,2.03669589]
[1633065255665,17.8394,140.31,140.22,2.03669589]
[1633065255866,3.02,140.3,140.21,2.04067149]
[1633065256064,3.02,140.3,140.22,2.03379595]
[1633065256265,19.31234922,140.3,140.22,2.03379595]
[1633065256464,19.31234922,140.3,140.23,29.30814126]
[1633065258167,24.94777883,140.3,140.22,2.03379595]
[1633065258765,51.11261939,140.3,140.22,2.03379595]
[1633065259366,8.45689599,140.29,140.21,2.02353475]
[1633065259565,16.29234922,140.29,140.21,2.02353475]
[1633065260167,3.02,140.28,140.2,2.03053222]
[1633065260566,14.0923256,140.27,140.2,2.03053222]
[1633065260770,22.85995828,140.27,140.2,2.03053222]
[1633065260968,5.63542961,140.26,140.2,2.03053222]
[1633065261569,399.37344618,140.25,140.2,2.03053222]
[1633065265272,405.00887579,140.25,140.19,2.02734286]
[1633065271176,412.53359233,140.25,140.19,2.02734286]
[1633065271375,422.23340446,140.25,140.17,2.03551528]
[1633065271775,422.23340446,140.25,140.18,2.03097707]
[1633065271976,422.23340446,140.25,140.17,2.03115033]
[1633065272576,422.23340446,140.25,140.18,2.02983971]
[1633065272778,422.23340446,140.25,140.17,2.03021136]
[1633065273976,416.59797485,140.25,140.18,2.02104405]
[1633065274175,399.37344618,140.25,140.2,2.00913272]
[1633065274375,399.37344618,140.25,140.21,21.72518319]
[1633065274576,10.54471654,140.3,140.21,41.64318319]
[1633065275175,10.54471654,140.3,140.21,43.6473201]
[1633065275376,16.18014615,140.3,140.21,41.64318319]
[1633065276176,10.54471654,140.3,140.21,43.6419252]
[1633065276976,10.54471654,140.3,140.21,19.667]
[1633065277980,10.54471654,140.3,140.21,44.07327688]
[1633065278982,10.54471654,140.3,140.21,19.667]
[1633065279181,42.34498671,140.3,140.19,3.02]
[1633065279382,0.04176,140.29,140.19,3.02]
[1633065279584,3.02,140.28,140.17,3.02]
[1633065279780,3.02,140.28,140.18,7.77200391]
[1633065280181,3.02,140.28,140.19,28.45357538]
[1633065285485,5.63542961,140.27,140.16,3.02]
[1633065285686,34.83405374,140.27,140.16,3.02]
[1633065285984,5.63542961,140.26,140.17,7.17377028]
[1633065286185,5.63542961,140.26,140.16,3.02]
[1633065286384,5.63542961,140.26,140.17,26.64423356]
[1633065288186,29.19862413,140.27,140.17,26.64423356]
[1633065288586,5.63542961,140.26,140.17,26.64423356]
[1633065291097,5.63542961,140.26,140.16,3.02]
[1633065291293,3.02,140.25,140.14,3.02]
[1633065291493,3.02,140.25,140.15,7.16271891]
[1633065291692,5.63542961,140.24,140.15,7.16271891]
[1633065292096,5.63542961,140.24,140.15,31.06898894]
[1633065292294,5.63542961,140.24,140.16,7.15181283]
[1633065292995,5.63542961,140.24,140.15,23.90627003]
[1633065293196,5.63542961,140.24,140.16,7.14435116]
[1633065293395,5.63542961,140.24,140.15,23.90627003]
[1633065295499,45.58258253,140.26,140.16,7.10802249]
[1633065295699,3.06176,140.29,140.17,3.02]
[1633065295901,3.06176,140.29,140.18,21.35390275]
[1633065296901,3.02,140.29,140.19,7.38300302]
[1633065297104,3.02,140.29,140.19,58.21200302]
[1633065297301,3.02,140.29,140.19,80.829]
[1633065298302,5.63542961,140.28,140.19,60.0]
[1633065298602,5.63542961,140.28,140.18,21.35390275]
[1633065303709,31.81405374,140.28,140.18,21.35390275]
[1633065303906,3.02,140.27,140.18,21.35390275]
[1633065304109,24.85242961,140.27,140.16,60.0]
[1633065304307,51.01727017,140.27,140.16,60.0]
[1633065304507,22.96072524,140.26,140.16,60.0]
[1633065304710,3.02,140.25,140.16,60.0]
[1633065304907,36.91271651,140.25,140.16,30.0]
[1633065305107,5.63542961,140.24,140.13,32.6898367]
[1633065305306,29.06442961,140.24,140.14,7.41716826]
[1633065305707,8.65542961,140.23,140.14,7.41716826]
[1633065306108,3.02,140.23,140.14,7.41716826]
[1633065307309,28.2572869,140.25,140.14,7.41716826]
[1633065307509,31.2772869,140.25,140.14,7.41716826]
[1633065307708,36.91271651,140.25,140.14,7.41716826]
[1633065312612,31.2772869,140.25,140.14,7.41716826]
[1633065312810,3.02,140.25,140.14,7.41716826]
[1633065313210,3.02,140.25,140.16,27.10702307]
[1633065314211,3.02,140.25,140.16,44.83602307]
[1633065314410,17.36705563,140.26,140.16,47.85602307]
[1633065314613,0.04176,140.26,140.17,7.3260346]
[1633065314812,3.02,140.27,140.17,7.3260346]
[1633065317009,3.02,140.27,140.17,22.1240346]
[1633065317409,3.02,140.27,140.19,25.45424854]
[1633065317811,8.65542961,140.27,140.17,14.798]
[1633065318015,8.65542961,140.27,140.16,3.02]
[1633065318411,8.65542961,140.27,140.17,7.32986634]
[1633065318812,8.65542961,140.27,140.18,24.0733769]
[1633065320016,0.04176,140.26,140.18,24.0733769]
[1633065321536,5.67718961,140.26,140.18,24.0733769]
[1633065323737,0.04176,140.26,140.18,24.0733769]
[1633065324138,3.02,140.27,140.18,24.0733769]
[1633065324337,3.02,140.27,140.19,7.57254986]
[1633065327339,5.63542961,140.28,140.19,7.57254986]
[1633065332343,3.06176,140.29,140.19,7.57254986]
[1633065332742,446.12285637,140.31,140.2,3.02]
[1633065332943,443.10285637,140.31,140.21,29.17515441]
[1633065333144,443.10285637,140.31,140.22,3.02]
[1633065333342,443.10285637,140.31,140.23,7.53683577]
[1633065333543,443.10285637,140.31,140.24,27.82995916]
[1633065334145,425.77756074,140.31,140.24,27.82995916]
[1633065335143,148.33089135,140.31,140.2,23.762]
[1633065335344,4.33294469,140.31,140.24,5.63542961]
[1633065335544,551.73177287,140.41,140.25,3.02]
[1633065335745,551.77353287,140.41,140.25,222.87552916]
[1633065335944,551.73177287,140.41,140.26,37.52487887]
[1633065336145,551.73177287,140.41,140.27,96.34999275]
[1633065336347,72.5486,140.43,140.28,21.85797702]
[1633065336547,72.5486,140.43,140.29,74.53]
[1633065336744,72.5486,140.43,140.3,21.77100451]
[1633065336944,72.5486,140.43,140.31,3.02]
[1633065337146,72.5486,140.43,140.32,8.25117225]
[1633065337345,116.5,140.44,140.33,3.02]
[1633065337546,116.5,140.44,140.34,8.25052054]
[1633065337746,116.5,140.44,140.35,3.02]
[1633065337947,3.06176,140.45,140.35,3.02]
[1633065338548,0.04176,140.45,140.35,3.02]
[1633065338748,0.04176,140.45,140.35,17.58]
[1633065340149,0.04176,140.45,140.35,47.58]
[1633065340950,0.04176,140.45,140.35,77.58]
[1633065342351,24.0673618,140.46,140.35,77.58]
[1633065342752,24.0673618,140.46,140.35,17.58]
[1633065342955,3.06176,140.48,140.36,30.0]
[1633065343154,0.04176,140.48,140.37,3.02]
[1633065343354,0.04176,140.49,140.37,3.02]
[1633065343554,3.02,140.5,140.38,30.0]
[1633065343753,3.02,140.5,140.38,55.161]
[1633065344156,24.24973498,140.49,140.38,55.161]
[1633065344356,24.24973498,140.49,140.38,85.161]
[1633065346155,3.02,140.5,140.38,85.161]
[1633065346357,3.02,140.5,140.38,55.161]
[1633065346555,3.02,140.5,140.38,25.161]
[1633065346958,3.02,140.5,140.4,30.0]
[1633065347157,3.02,140.5,140.41,30.0]
[1633065347354,3.02,140.5,140.39,3.02]
[1633065347556,3.02,140.5,140.43,60.0]
[1633065347756,74.5904,140.51,140.35,15.978]
[1633065347757,74.63216,140.51,140.35,15.978]
[1633065347959,74.63216,140.51,140.41,63.02]
[1633065348156,0.04176,140.51,140.41,63.02]
[1633065348557,0.04176,140.53,140.41,63.02]
[1633065348758,0.04176,140.53,140.41,68.65542961]
[1633065348960,0.04176,140.55,140.41,38.65542961]
[1633065349157,0.04176,140.55,140.43,30.0]
[1633065349357,23.25826684,140.55,140.44,3.02]
[1633065349561,0.04176,140.54,140.44,3.02]
[1633065350559,8.69718961,140.54,140.44,3.02]
[1633065350759,8.69718961,140.54,140.41,63.02]
[1633065351959,24.87718961,140.54,140.41,63.02]
[1633065352161,72.86075054,140.54,140.41,60.0]
[1633065352360,0.04176,140.53,140.41,60.0]
[1633065352560,24.06478052,140.51,140.39,3.02]
[1633065352759,3.06176,140.5,140.39,3.02]
[1633065352961,2.58264,140.5,140.39,3.02]
[1633065353964,81.82884,140.5,140.39,3.02]
[1633065354565,2.58264,140.5,140.39,3.02]
[1633065354766,0.02088,140.5,140.39,8.65542961]
[1633065354966,3.04088,140.55,140.39,8.65542961]
[1633065355165,3.04088,140.55,140.39,23.79342961]
[1633065355764,3.02,140.55,140.39,23.79342961]
[1633065356764,3.02,140.55,140.41,30.0]
[1633065356967,3.02,140.55,140.42,3.02]
[1633065357165,3.02,140.55,140.42,18.701]